bitfinex-derivatives/quotes_BNBF0:USTF0_20250715
["timestamp","ask_amount","ask_price","bid_price","bid_amount"]
[1752564752465,0.98492613,680.38,679.75,0.25583909]
[1752564753261,0.98492613,680.42,679.75,0.25583909]
[1752564753561,0.98492613,680.43,679.75,0.25583909]
[1752564754064,0.98492613,680.44,679.75,0.25583909]
[1752564754366,0.98492613,680.43,679.75,0.25583909]
[1752564755159,1.1078762,680.48,679.75,0.25583909]
[1752564755160,0.98492613,680.41,679.75,0.25583909]
[1752564756065,0.98492613,680.4,679.75,0.25583909]
[1752564756966,0.25558073,681.15,679.75,0.25583909]
[1752564756967,0.98492613,680.38,679.75,0.25583909]
[1752564758466,0.98492613,680.36,679.75,0.25583909]
[1752564759268,0.98492613,680.31,679.75,0.25583909]
[1752564763867,0.98492613,680.29,679.75,0.25583909]
[1752564764669,0.98492613,680.3,679.75,0.25583909]
[1752564765364,0.98492613,680.29,679.75,0.25583909]
[1752564765765,0.98492613,680.3,679.75,0.25583909]
[1752564765965,0.98492613,680.29,679.75,0.25583909]
[1752564768068,0.98492613,680.26,679.75,0.25583909]
[1752564768768,1.1064118,680.39,679.75,0.25583909]
[1752564768968,1.1064118,680.38,679.75,0.25583909]
[1752564769168,1.1064118,680.37,679.75,0.25583909]
[1752564769373,1.1064118,680.36,679.75,0.25583909]
[1752564769575,0.98492613,680.39,679.75,0.25583909]
[1752564770273,0.98492613,680.37,679.75,0.25583909]
[1752564770872,0.98492613,680.38,679.75,0.25583909]
[1752564771474,0.98492613,680.38,679.33,0.98873757]
[1752564771770,0.98492613,680.36,679.64,0.25588612]
[1752564776274,0.98492613,680.35,679.64,0.25588612]
[1752564776676,0.98492613,680.36,679.64,0.25588612]
[1752564777277,0.98492613,680.35,679.64,0.25588612]
[1752564777673,2.09117263,680.35,679.64,0.25588612]
[1752564777973,1.1062465,680.34,679.64,0.25588612]
[1752564778174,0.98492613,680.35,679.64,0.25588612]
[1752564778175,1.1062465,680.33,679.64,0.25588612]
[1752564778375,0.98492613,680.35,679.64,0.25588612]
[1752564778573,0.98492613,680.25,679.64,0.25588612]
[1752564780281,0.98492613,680.26,679.64,0.25588612]
[1752564780876,0.98492613,680.23,679.64,0.25588612]
[1752564781078,0.98492613,680.25,679.64,0.25588612]
[1752564782282,0.98492613,680.23,679.64,0.25588612]
[1752564783382,0.98492613,680.15,679.64,0.25588612]
[1752564783580,0.98492613,680.11,679.64,0.25588612]
[1752564784380,0.98492613,680.1,679.64,0.25588612]
[1752564784584,0.98492613,680.11,679.64,0.25588612]
[1752564785882,0.98492613,680.12,679.64,0.25588612]
[1752564789285,0.98492613,680.13,679.64,0.25588612]
[1752564790189,0.98492613,680.12,679.64,0.25588612]
[1752564790489,0.98492613,680.13,679.64,0.25588612]
[1752564790790,0.98492613,680.11,679.64,0.25588612]
[1752564791393,0.98492613,680.12,679.36,0.98873757]
[1752564791592,0.98492613,680.11,679.57,0.25592187]
[1752564792990,0.98492613,680.12,679.57,0.25592187]
[1752564793391,0.98492613,680.11,679.57,0.25592187]
[1752564793796,0.98492613,680.12,679.57,0.25592187]
[1752564795793,0.98492613,680.1,679.57,0.25592187]
[1752564795996,0.98492613,680.12,679.57,0.25592187]
[1752564798492,0.98492613,680.11,679.57,0.25592187]
[1752564798894,0.98492613,680.18,679.57,0.25592187]
[1752564799097,0.98492613,680.17,679.57,0.25592187]
[1752564799598,0.98492613,680.21,679.57,0.25592187]
[1752564801698,0.98492613,680.19,679.57,0.25592187]
[1752564802400,0.98492613,680.18,679.57,0.25592187]
[1752564803601,0.98492613,680.13,679.57,0.25592187]
[1752564805404,0.98492613,680.12,679.57,0.25592187]
[1752564805601,0.98492613,680.06,679.57,0.25592187]
[1752564806002,0.98492613,680.08,679.57,0.25592187]
[1752564806504,0.98492613,680.07,679.57,0.25592187]
[1752564807308,0.98492613,680.05,679.57,0.25592187]
[1752564807506,0.98492613,680.0,679.57,0.25592187]
[1752564808305,0.98492613,680.01,679.57,0.25592187]
[1752564809404,0.2558927,680.41,679.57,0.25592187]
[1752564809405,0.98492613,680.12,679.57,0.25592187]
[1752564809806,0.98492613,680.31,679.57,0.25592187]
[1752564810006,0.98492613,680.38,679.57,0.25592187]
[1752564811313,0.98492613,680.4,679.57,0.25592187]
[1752564812709,0.98492613,680.45,679.57,0.25592187]
[1752564814114,0.98492613,680.48,679.57,0.25592187]
[1752564814314,0.98492613,680.49,679.57,0.25592187]
[1752564814715,0.98492613,680.5,679.57,0.25592187]
[1752564815015,0.98492613,680.54,679.57,0.25592187]
[1752564815414,2.09330043,680.55,679.57,0.25592187]
[1752564817416,1.1083743,680.55,679.57,0.25592187]
[1752564819218,0.98492613,680.52,679.57,0.25592187]
[1752564819719,0.98492613,680.41,679.57,0.25592187]
[1752564820317,0.98492613,680.41,679.57,1.24465944]
[1752564820521,0.98492613,680.41,679.57,0.25592187]
[1752564820817,0.2558626,680.56,679.58,0.98873757]
[1752564820818,0.98492613,680.38,679.58,0.98873757]
[1752564821018,0.98492613,680.39,679.58,0.98873757]
[1752564821417,0.98492613,680.34,679.57,0.25592187]
[1752564822021,0.98492613,680.29,679.57,0.25592187]
[1752564825822,0.98492613,680.28,679.57,0.25592187]
[1752564826721,0.98492613,680.3,679.57,0.25592187]
[1752564827324,1.3180969,680.48,679.57,0.25592187]
[1752564827325,0.98492613,680.29,679.57,0.25592187]
[1752564830830,0.98492613,680.27,679.57,0.25592187]
[1752564831031,0.98492613,680.29,679.57,0.25592187]
[1752564832428,0.98492613,680.35,679.57,0.25592187]
[1752564832628,0.98492613,680.34,679.57,0.25592187]
[1752564833129,0.98492613,680.27,679.57,0.25592187]
[1752564833332,0.98492613,680.24,679.57,0.25592187]
[1752564835133,0.98492613,680.25,679.57,0.25592187]
[1752564835536,0.98492613,680.26,679.57,0.25592187]
[1752564836037,0.98492613,680.25,679.57,0.25592187]
[1752564836237,0.2558626,680.56,679.57,0.25592187]
[1752564836238,0.98492613,680.26,679.57,0.25592187]
[1752564836840,0.98492613,680.27,679.57,0.25592187]
[1752564837641,0.98492613,680.25,679.57,0.25592187]
[1752564839341,0.2558626,680.56,679.57,0.25592187]
[1752564839342,0.98492613,680.22,679.57,0.25592187]
[1752564839641,0.98492613,680.25,679.57,0.25592187]
[1752564841036,0.98492613,680.26,679.57,0.25592187]
[1752564844442,0.98492613,680.25,679.57,0.25592187]
[1752564845244,0.98492613,680.24,679.57,0.25592187]
[1752564846045,0.98492613,680.25,679.57,0.25592187]
[1752564846441,0.98492613,680.26,679.57,0.25592187]
[1752564846643,0.98492613,680.25,679.57,0.25592187]
[1752564846941,0.98492613,680.26,679.57,0.25592187]
[1752564847545,0.98492613,680.25,679.57,0.25592187]
[1752564850745,0.98492613,680.24,679.57,0.25592187]
[1752564850947,0.98492613,680.25,679.57,0.25592187]
[1752564852053,0.98492613,680.24,679.57,0.25592187]
[1752564854454,0.98492613,680.23,679.57,0.25592187]
[1752564855850,0.98492613,680.21,679.57,0.25592187]
[1752564857555,0.98492613,680.2,679.57,0.25592187]
[1752564858453,0.98492613,680.19,679.57,0.25592187]
[1752564862759,0.98492613,680.18,679.57,0.25592187]
[1752564864359,0.98492613,680.17,679.57,0.25592187]
[1752564865962,0.98492613,680.18,679.57,0.25592187]
[1752564866260,1.3180969,680.35,679.57,0.25592187]
[1752564866261,0.98492613,680.15,679.57,0.25592187]
[1752564867358,0.98492613,680.14,679.57,0.25592187]
[1752564867856,0.98492613,680.19,679.57,0.25592187]
[1752564870361,0.98492613,680.15,679.57,0.25592187]
[1752564874465,0.98492613,680.16,679.57,0.25592187]
[1752564875362,0.98492613,680.15,679.57,0.25592187]
[1752564875963,0.98492613,680.16,679.57,0.25592187]
[1752564876767,0.98492613,680.17,679.57,0.25592187]
[1752564877368,0.98492613,680.16,679.57,0.25592187]
[1752564877570,0.98492613,680.11,679.57,0.25592187]
[1752564878370,0.98492613,680.1,679.57,0.25592187]
[1752564879070,0.98492613,680.12,679.57,0.25592187]
[1752564879369,0.98492613,680.14,679.57,0.25592187]
[1752564879570,0.98492613,680.17,679.57,0.25592187]
[1752564880465,0.98492613,680.16,679.57,0.25592187]
[1752564881068,0.98492613,680.18,679.57,0.25592187]
[1752564881466,0.98492613,680.17,679.57,0.25592187]
[1752564881669,0.98492613,680.18,679.57,0.25592187]
[1752564882070,0.98492613,680.19,679.57,0.25592187]
[1752564883669,0.98492613,680.18,679.57,0.25592187]
[1752564886575,0.98492613,680.17,679.57,0.25592187]
[1752564887573,0.98492613,680.16,679.57,0.25592187]
[1752564888376,1.1085998,680.31,679.57,0.25592187]
[1752564888676,0.98708218,680.16,679.57,0.25592187]
[1752564889070,0.98708218,680.15,679.57,0.25592187]
[1752564890779,0.98708218,680.14,679.57,0.25592187]
[1752564890976,0.98708218,680.16,679.57,0.25592187]
[1752564891480,0.98708218,680.15,679.57,0.25592187]
[1752564892180,1.9718733,680.5,679.57,0.25592187]
[1752564892181,0.98708218,680.1,679.57,0.25592187]
[1752564895478,0.98708218,680.09,679.57,0.25592187]
[1752564895880,0.98708218,680.11,679.57,0.25592187]
[1752564900778,0.98708218,680.1,679.57,0.25592187]
[1752564900978,0.98708218,680.09,679.57,0.25592187]
[1752564903182,0.98708218,680.11,679.57,0.25592187]
[1752564904893,0.98708218,680.21,679.57,0.25592187]
[1752564905094,0.98708218,680.29,679.57,0.25592187]
[1752564906289,0.98708218,680.3,679.57,0.25592187]
[1752564907292,0.98708218,680.32,679.57,0.25592187]
[1752564912294,0.98708218,680.31,679.57,0.25592187]
[1752564914294,0.98708218,680.29,679.58,0.99097544]
[1752564914900,0.98708218,680.24,679.61,0.99097544]
[1752564915399,0.98708218,680.23,679.61,0.99097544]
[1752564915801,0.98708218,680.2,679.63,0.99097544]
[1752564915996,0.98708218,680.22,679.62,0.99097544]
[1752564917502,0.98708218,680.22,679.61,0.99097544]
[1752564921201,1.1084726,680.37,679.57,0.25592187]
[1752564921404,0.98655151,680.22,679.61,0.99012228]
[1752564924606,0.98655151,680.23,679.61,0.99012228]
[1752564925302,0.2558626,680.56,679.58,0.99012228]
[1752564925303,0.98655151,680.26,679.58,0.99012228]
[1752564925702,0.98655151,680.25,679.59,0.99012228]
[1752564926207,1.1081018,680.35,679.57,0.25592187]
[1752564926208,0.98655151,680.27,679.57,1.24604415]
[1752564926909,0.98655151,680.24,679.57,0.25592187]
[1752564927105,0.98655151,680.19,679.57,0.25592187]
[1752564927308,0.98655151,680.18,679.57,0.25592187]
[1752564928910,0.98655151,680.15,679.57,0.25592187]
[1752564930106,0.98655151,680.16,679.57,0.25592187]
[1752564933011,0.98655151,680.17,679.57,0.25592187]
[1752564935116,0.98655151,680.16,679.57,0.25592187]
[1752564935313,0.98655151,680.13,679.57,0.25592187]
[1752564936116,0.98655151,680.16,679.57,0.25592187]
[1752564936317,0.98655151,680.17,679.57,0.25592187]
[1752564938721,0.98655151,680.16,679.57,0.25592187]
[1752564938918,0.98655151,680.18,679.57,0.25592187]
[1752564939518,0.98655151,680.22,679.59,0.99012228]
[1752564941123,0.98655151,680.24,679.58,0.99012228]
[1752564941818,0.98655151,680.24,679.59,0.99012228]
[1752564943217,0.98655151,680.22,679.6,0.99012228]
[1752564943917,0.98655151,680.21,679.6,0.99012228]
[1752564944122,0.98655151,680.23,679.59,0.99012228]
[1752564950520,0.2558626,680.56,679.58,0.99012228]
[1752564950521,0.98655151,680.24,679.58,0.99012228]
[1752564953529,0.98655151,680.24,679.59,0.99012228]
[1752564953729,0.98655151,680.23,679.59,0.99012228]
[1752564954130,0.98655151,680.21,679.6,0.99012228]
[1752564955028,0.98655151,680.22,679.64,0.25584097]
[1752564955431,0.98655151,680.21,679.64,0.25584097]
[1752564958031,0.98655151,680.17,679.64,0.25584097]
[1752564958730,0.98655151,680.18,679.64,1.24596325]
[1752564959336,0.98655151,680.17,679.65,0.99012228]
[1752564960035,0.98655151,680.16,679.65,0.99012228]
[1752564961034,0.25584097,680.5,679.64,0.25584097]
[1752564961035,0.98655151,680.18,679.64,0.25584097]
[1752564961633,0.98655151,680.18,679.64,1.24596325]
[1752564965139,0.98655151,680.17,679.64,1.24596325]
[1752564966037,0.98655151,680.2,679.64,0.25584097]
[1752564967437,0.98655151,680.19,679.64,0.25584097]
[1752564967638,0.98655151,680.18,679.64,0.25584097]
[1752564970841,0.98655151,680.17,679.64,0.25584097]
[1752564971145,0.98655151,680.19,679.64,0.25584097]
[1752564972543,0.98655151,680.2,679.64,0.25584097]
[1752564973249,0.98655151,680.21,679.64,0.25584097]
[1752564975347,0.98655151,680.19,679.65,0.99012228]
[1752564975647,0.98655151,680.19,679.64,1.24596325]
[1752564976549,0.98655151,680.2,679.64,1.24596325]
[1752564976948,0.98655151,680.2,679.64,0.25584097]
[1752564980850,0.98655151,680.18,679.64,1.24596325]
[1752564981055,0.98655151,680.2,679.64,0.25584097]
[1752564982450,0.98655151,680.21,679.64,0.25584097]
[1752564983951,0.98655151,680.2,679.64,0.25584097]
[1752564986051,0.98655151,680.21,679.64,0.25584097]
[1752564986553,0.98655151,680.2,679.64,0.25584097]
[1752564986756,0.98655151,680.19,679.64,0.25584097]
[1752564988459,0.98655151,680.2,679.64,0.25584097]
[1752564990857,0.98655151,680.18,679.65,0.99012228]
[1752564991158,0.98655151,680.2,679.64,0.25584097]
[1752564992158,0.98655151,680.2,679.64,1.24596325]
[1752564992358,0.98655151,680.19,679.64,1.24596325]
[1752564993362,0.98655151,680.18,679.65,0.99012228]
[1752564993660,0.98655151,680.19,679.65,0.99012228]
[1752564994261,0.98655151,680.15,679.64,0.25584097]
[1752564994560,0.98655151,680.14,679.64,0.25584097]
[1752564995462,0.98655151,680.13,679.64,0.25584097]
[1752564997962,0.98655151,680.15,679.64,0.25584097]
[1752564998165,0.98655151,680.17,679.65,0.99012228]
[1752564998365,0.98655151,680.16,679.66,0.99012228]
[1752565000768,0.98655151,680.13,679.68,0.99012228]
[1752565000968,0.98655151,680.15,679.67,0.99012228]
[1752565001265,0.98655151,680.16,679.67,0.99012228]
[1752565001467,0.98655151,680.15,679.67,0.99012228]
[1752565003467,0.25584097,680.5,679.68,0.99012228]
[1752565003468,0.98655151,680.14,679.68,0.99012228]
[1752565003672,0.98655151,680.14,679.64,0.25584097]
[1752565003673,0.98655151,680.15,679.67,0.99012228]
[1752565003973,0.98655151,680.14,679.67,0.99012228]
[1752565004272,0.98655151,680.14,679.68,0.99012228]
[1752565004568,0.98655151,680.14,679.64,0.25584097]
[1752565004569,0.98655151,680.14,679.67,0.99012228]
[1752565005170,0.98655151,680.14,679.68,0.99012228]
[1752565005874,0.98655151,680.17,679.66,0.99012228]
[1752565007576,0.98655151,680.19,679.65,0.99012228]
[1752565010875,0.98655151,680.19,679.64,1.24596325]
[1752565013680,0.98655151,680.19,679.65,0.99012228]
[1752565014878,0.98655151,680.19,679.64,1.24596325]
[1752565015884,0.98655151,680.18,679.65,0.99012228]
[1752565016081,0.98655151,680.19,679.64,1.24596325]
[1752565017382,0.98655151,680.18,679.65,0.99012228]
[1752565020688,0.98655151,680.17,679.65,0.99012228]
[1752565020984,0.98655151,680.16,679.66,0.99012228]
[1752565021587,0.98655151,680.15,679.67,0.99012228]
[1752565021990,0.98655151,680.14,679.67,0.99012228]
[1752565022188,0.98655151,680.15,679.67,0.99012228]
[1752565022990,0.98655151,680.14,679.67,0.99012228]
[1752565025190,0.98655151,680.14,679.68,0.99012228]
[1752565025491,0.98655151,680.12,679.65,0.99012228]
[1752565025893,0.98655151,680.12,679.64,0.25584097]
[1752565025894,0.98655151,680.13,679.64,1.24596325]
[1752565028394,0.98655151,680.12,679.64,0.25584097]
[1752565028994,0.98655151,680.11,679.64,0.25584097]
[1752565029191,0.98655151,680.12,679.64,0.25584097]
[1752565029395,0.98655151,680.11,679.64,0.25584097]
[1752565034394,0.98655151,680.12,679.64,0.25584097]
[1752565035901,0.98655151,680.11,679.64,0.25584097]
[1752565040304,0.98655151,680.1,679.64,0.25584097]
[1752565041108,0.98655151,680.14,679.64,0.25584097]
[1752565043409,0.98655151,680.15,679.64,0.25584097]
[1752565044106,0.98655151,680.14,679.64,0.25584097]
[1752565044307,0.98655151,680.13,679.64,0.25584097]
[1752565044506,0.98655151,680.09,679.64,0.25584097]
[1752565044710,0.98655151,680.07,679.64,0.25584097]
[1752565046314,0.98655151,680.08,679.64,0.25584097]
[1752565048216,0.98655151,680.09,679.64,0.25584097]
[1752565049821,0.98782219,680.09,679.64,0.25584097]
[1752565051020,0.98782219,680.1,679.64,0.25584097]
[1752565052620,0.98782219,680.11,679.64,0.25584097]
[1752565053019,0.98782219,680.09,679.64,0.25584097]
[1752565055623,0.98782219,680.1,679.64,0.25584097]
[1752565055822,0.98782219,680.09,679.64,0.25584097]
[1752565057227,0.98782219,680.1,679.64,0.25584097]
[1752565057724,0.98782219,680.09,679.64,0.25584097]
[1752565058226,0.98782219,680.1,679.64,0.25584097]
[1752565060825,0.98782219,680.07,679.64,0.25584097]
[1752565061029,0.98782219,680.11,679.64,0.25584097]
[1752565062531,0.98782219,680.1,679.64,0.25584097]
[1752565064331,0.98782219,680.08,679.64,0.25584097]
[1752565065933,0.98782219,680.1,679.64,0.25584097]
[1752565066830,0.98782219,680.06,679.64,0.25584097]
[1752565069034,0.98782219,680.07,679.64,0.25584097]
[1752565069335,0.98782219,680.08,679.64,0.25584097]
[1752565070834,0.98782219,680.07,679.64,0.25584097]
[1752565071731,0.98782219,680.08,679.64,0.25584097]
[1752565073330,0.98782219,680.07,679.64,0.25584097]
[1752565075236,0.98782219,680.1,679.64,0.25584097]
[1752565077644,0.98782219,680.12,679.64,0.25584097]
[1752565078139,0.98782219,680.11,679.64,0.25584097]
[1752565078344,0.98782219,680.12,679.64,0.25584097]
[1752565078542,0.98782219,680.11,679.64,0.25584097]
[1752565080046,0.98782219,680.09,679.64,0.25584097]
[1752565081047,0.98782219,680.08,679.64,0.25584097]
[1752565081342,0.98782219,680.05,679.64,0.25584097]
[1752565085844,0.98782219,680.04,679.64,0.25584097]
[1752565086942,0.98782219,680.04,679.37,0.99112247]
[1752565087447,0.98782219,680.01,679.53,0.25593505]
[1752565088244,0.98782219,680.18,679.53,0.25593505]
[1752565094249,0.98782219,680.12,679.53,0.25593505]
[1752565094746,0.98782219,680.07,679.53,0.25593505]
[1752565095652,0.98782219,680.02,679.53,0.25593505]
[1752565096048,0.98782219,680.04,679.53,0.25593505]
[1752565096451,0.98782219,680.05,679.53,0.25593505]
[1752565097154,0.98782219,679.97,679.25,0.99112247]
[1752565097355,0.98782219,679.93,679.21,0.99112247]
[1752565097552,0.98782219,679.93,679.42,0.25595763]
[1752565097858,0.98782219,679.92,679.42,0.25595763]
[1752565098152,0.98782219,679.93,679.42,0.25595763]
[1752565098856,0.98782219,679.95,679.42,0.25595763]
[1752565101262,0.98782219,679.94,679.42,0.25595763]
[1752565101960,0.98782219,679.96,679.42,0.25595763]
[1752565102462,0.98782219,679.95,679.42,0.25595763]
[1752565102758,0.98782219,679.94,679.42,0.25595763]
[1752565105262,0.98782219,679.95,679.42,0.25595763]
[1752565105866,0.98782219,679.94,679.42,0.25595763]
[1752565106066,0.98782219,679.95,679.42,0.25595763]
[1752565106467,0.98782219,679.94,679.42,0.25595763]
[1752565107563,0.25584097,680.5,679.42,0.25595763]
[1752565107564,0.98782219,679.96,679.42,0.25595763]
[1752565108572,0.25584097,680.5,679.42,0.25595763]
[1752565108573,0.98782219,679.95,679.42,0.25595763]
[1752565108966,0.98782219,679.94,679.42,0.25595763]
[1752565113573,0.98782219,679.92,679.42,0.25595763]
[1752565113770,0.98782219,679.88,679.42,0.25595763]
[1752565113974,0.98782219,679.87,679.42,0.25595763]
[1752565114874,0.98782219,679.88,679.42,0.25595763]
[1752565116070,0.98782219,679.9,679.42,0.25595763]
[1752565117477,0.98379201,679.96,679.13,0.98878401]
[1752565117677,0.98379201,679.89,679.32,0.25600659]
[1752565117878,0.25584097,680.5,679.32,0.25600659]
[1752565117879,0.98379201,679.87,679.32,0.25600659]
[1752565121677,0.98379201,679.86,679.32,0.25600659]
[1752565122379,0.98379201,679.85,679.32,0.25600659]
[1752565123977,0.98379201,679.82,679.32,0.25600659]
[1752565125976,0.98379201,679.84,679.32,0.25600659]
[1752565127985,0.98379201,679.85,679.32,0.25600659]
[1752565128485,0.98379201,679.86,679.32,0.25600659]
[1752565130687,0.98379201,679.89,679.32,0.25600659]
[1752565131083,1.3180969,680.08,679.32,0.25600659]
[1752565131084,0.98379201,679.93,679.32,0.25600659]
[1752565131282,0.98379201,679.95,679.32,0.25600659]
[1752565131784,0.98379201,679.92,679.32,0.25600659]
[1752565131988,0.98379201,679.93,679.32,0.25600659]
[1752565134487,0.98379201,679.89,679.32,0.25600659]
[1752565135386,0.98379201,679.88,679.32,0.25600659]
[1752565135589,0.98379201,679.86,679.32,0.25600659]
[1752565135887,1.3180969,680.0,679.32,0.25600659]
[1752565135888,0.98379201,679.87,679.32,0.25600659]
[1752565136285,0.98379201,679.86,679.32,0.25600659]
[1752565136887,0.98379201,679.91,679.32,0.25600659]
[1752565137091,0.98379201,679.98,679.32,0.25600659]
[1752565139292,0.98379201,680.02,679.32,1.2447906]
[1752565139792,1.3180969,680.16,679.32,1.2447906]
[1752565139793,0.98379201,680.0,679.32,0.25600659]
[1752565139992,0.98379201,679.98,679.32,0.25600659]
[1752565140692,0.98379201,679.97,679.32,0.25600659]
[1752565140988,0.98379201,680.0,679.32,0.25600659]
[1752565141889,0.98379201,679.99,679.32,0.25600659]
[1752565142892,0.98379201,679.97,679.32,0.25600659]
[1752565144888,0.98379201,679.96,679.32,0.25600659]
[1752565145891,0.98379201,679.98,679.32,0.25600659]
[1752565146089,0.98379201,679.99,679.32,0.25600659]
[1752565147294,0.98379201,679.98,679.32,0.25600659]
[1752565147593,1.9718733,680.32,679.32,0.25600659]
[1752565147594,0.98379201,679.99,679.32,0.25600659]
[1752565148293,0.98379201,679.98,679.32,0.25600659]
[1752565149298,0.98379201,679.99,679.32,0.25600659]
[1752565150294,0.98379201,679.98,679.32,0.25600659]
[1752565150698,0.98379201,679.96,679.32,0.25600659]
[1752565152499,0.98379201,679.95,679.32,0.25600659]
[1752565152899,0.25584097,680.5,679.32,0.25600659]
[1752565152900,0.98379201,679.96,679.32,0.25600659]
[1752565153399,0.98379201,679.99,679.32,0.25600659]
[1752565155098,0.98379201,679.96,679.32,1.2447906]
[1752565155998,0.98379201,679.98,679.32,0.25600659]
[1752565161104,0.98379201,679.99,679.32,0.25600659]
[1752565162209,0.98379201,680.01,679.32,0.25600659]
[1752565162706,0.98379201,680.0,679.32,0.25600659]
[1752565163408,0.98379201,679.97,679.32,0.25600659]
[1752565163612,0.98379201,679.98,679.32,0.25600659]
[1752565163909,1.1095089,680.08,679.32,0.25600659]
[1752565164109,0.98549256,679.96,679.32,0.25600659]
[1752565166117,0.98549256,679.97,679.32,0.25600659]
[1752565168325,0.98549256,679.96,679.32,0.25600659]
[1752565168521,0.98549256,679.93,679.32,0.25600659]
[1752565168725,0.98549256,679.94,679.32,0.25600659]
[1752565169121,0.98549256,679.95,679.32,0.25600659]
[1752565169326,0.98549256,679.91,679.32,0.25600659]
[1752565169523,0.98549256,679.86,679.32,0.25600659]
[1752565170320,0.98549256,679.85,679.32,0.25600659]
[1752565170924,0.98549256,679.87,679.32,0.25600659]
[1752565172023,0.98549256,679.89,679.32,0.25600659]
[1752565172422,0.98549256,679.9,679.32,0.25600659]
[1752565173123,0.98549256,679.89,679.32,0.25600659]
[1752565173327,0.98549256,679.9,679.32,0.25600659]
[1752565175229,0.98549256,679.89,679.32,0.25600659]
[1752565175426,0.98549256,679.9,679.32,0.25600659]
[1752565175926,2.09529976,679.91,679.32,0.25600659]
[1752565176230,0.98549256,679.9,679.32,0.25600659]
[1752565176529,0.98549256,679.91,679.32,0.25600659]
[1752565178127,0.98549256,679.9,679.32,0.25600659]
[1752565178332,0.98549256,679.89,679.32,0.25600659]
[1752565180832,0.98549256,679.9,679.32,0.25600659]
[1752565181428,0.98549256,679.89,679.32,0.25600659]
[1752565182031,0.98549256,679.87,679.32,0.25600659]
[1752565183437,0.98549256,679.86,679.32,0.25600659]
[1752565183937,0.98549256,679.87,679.32,0.25600659]
[1752565184338,0.98549256,679.86,679.32,0.25600659]
[1752565185340,0.98549256,679.87,679.32,0.25600659]
[1752565185837,0.98549256,679.86,679.32,0.25600659]
[1752565186038,0.98549256,679.87,679.32,0.25600659]
[1752565186637,0.98549256,679.9,679.32,0.25600659]
[1752565187136,0.98549256,679.88,679.32,0.25600659]
[1752565187533,0.98549256,679.86,679.32,0.25600659]
[1752565187734,0.98549256,679.82,679.32,0.25600659]
[1752565188138,0.98549256,679.81,679.32,0.25600659]
[1752565188433,0.98549256,679.77,679.32,0.25600659]
[1752565189038,0.98549256,679.75,679.32,0.25600659]
[1752565189239,0.98549256,679.72,679.32,0.25600659]
[1752565189934,0.98549256,679.71,679.32,0.25600659]
[1752565190139,0.98549256,679.72,679.32,0.25600659]
[1752565192135,0.98549256,679.73,679.32,0.25600659]
[1752565192541,0.98549256,679.7,679.32,0.25600659]
[1752565193240,0.98549256,679.68,679.32,0.25600659]
[1752565193438,0.98549256,679.65,679.32,0.25600659]
[1752565193840,0.98549256,679.64,679.04,0.98964304]
[1752565194043,0.98549256,679.63,679.02,0.98964304]
[1752565194338,0.98549256,679.64,679.01,0.98964304]
[1752565194737,0.98549256,679.64,679.17,0.25607441]
[1752565195343,0.98549256,679.63,679.17,0.25607441]
[1752565196042,0.98549256,679.66,679.17,0.25607441]
[1752565196243,0.98549256,679.67,679.17,0.25607441]
[1752565196444,0.98549256,679.65,679.17,0.25607441]
[1752565197242,0.98549256,679.66,679.17,0.25607441]
[1752565198243,0.98549256,679.67,679.17,0.25607441]
[1752565198643,0.98549256,679.64,679.17,0.25607441]
[1752565201042,0.98549256,679.66,679.17,0.25607441]
[1752565201644,0.98549256,679.63,679.17,0.25607441]
[1752565202342,0.98549256,679.64,679.17,0.25607441]
[1752565205950,0.98549256,679.65,679.17,0.25607441]
[1752565207348,0.98549256,679.66,679.17,0.25607441]
[1752565207548,0.98549256,679.65,679.17,0.25607441]
[1752565208655,0.98549256,679.64,679.17,0.25607441]
[1752565210954,0.25593505,680.26,679.17,0.25607441]
[1752565210955,0.98549256,679.66,679.17,0.25607441]
[1752565211353,2.09010316,679.66,679.17,0.25607441]
[1752565211555,0.98549256,679.66,679.17,0.25607441]
[1752565215656,0.98549256,679.65,679.17,0.25607441]
[1752565217059,0.98549256,679.67,679.17,0.25607441]
[1752565217260,0.98549256,679.64,679.17,0.25607441]
[1752565221060,2.08950376,679.64,679.17,0.25607441]
[1752565221260,0.25593505,680.26,679.17,0.25607441]
[1752565221261,0.98549256,679.6,679.17,0.25607441]
[1752565221464,0.98549256,679.57,679.17,0.25607441]
[1752565222060,0.98549256,679.6,679.17,0.25607441]
[1752565223861,0.98549256,679.62,679.17,0.25607441]
[1752565227069,2.08953686,679.64,679.17,0.25607441]
[1752565227369,1.1040443,679.63,679.17,0.25607441]
[1752565227567,0.98549256,679.65,679.17,0.25607441]
[1752565229071,0.98549256,679.63,679.17,0.25607441]
[1752565230770,0.98549256,679.64,679.17,0.25607441]
[1752565231178,0.98549256,679.62,679.17,0.25607441]
[1752565231874,0.98549256,679.64,679.17,0.25607441]
[1752565232178,0.98549256,679.63,679.17,0.25607441]
[1752565232575,0.98549256,679.62,679.17,0.25607441]
[1752565234280,0.98549256,679.61,679.17,0.25607441]
[1752565235176,0.98549256,679.6,679.17,0.25607441]
[1752565236881,0.98549256,679.59,679.17,0.25607441]
[1752565237078,0.98549256,679.61,679.17,0.25607441]
[1752565237883,0.98549256,679.6,679.17,0.25607441]
[1752565238182,0.98549256,679.61,679.17,0.25607441]
[1752565238782,0.98549256,679.51,679.17,0.25607441]